[Event "Reykjavik Open 2022"]
[Site "Reykjavik"]
[Date "2022.04.09"]
[Round "5.55"]
[White "Steiners, Emils"]
[Black "Jonsson, Gauti Pall"]
[Result "0-1"]
[ECO "B21"]
[WhiteElo "1747"]
[BlackElo "2048"]
[Annotator "TA"]
[PlyCount "100"]
[EventDate "2022.04.06"]
[EventCountry "ISL"]
[SourceTitle "playchess.com"]
[Source "ChessBase"]
[SourceQuality "1"]
[TimeControl "40/5400+30:1800+30"]

{[%evp 11,100,43,42,37,39,28,41,15,25,12,29,20,45,0,31,0,0,0,25,25,40,13,13,-43,-37,-75,-37,-40,-42,-57,-22,-63,-51,-58,14,-63,-50,-78,-72,-192,-183,-189,-189,-335,-334,-306,-247,-242,-219,-322,-334,-327,-293,-472,-438,-425,-435,-443,-429,-431,-404,-388,-370,-364,-185,-338,-324,-310,-323,-834,-817,-1378,-1355,-869,-697,-726,-704,-12834,-11446,-12833,-6610,-29983,-29984,-29990,-29991,-29991,-29992,-29992,-29993,-29993,-29991]} 1. e4 {[%emt 0:00:07]} c5 {[%emt 0:01:19]} 2. d4 {[%emt 0:00:07]} cxd4 {[%emt 0:00:23]} 3. c3 {[%emt 0:00:05]} d3 {[%emt 0:01:31]} 4. Bxd3 {[%emt 0:00:29]} g6 {[%emt 0:01:07]} 5. Nf3 {[%emt 0:00:11]} Bg7 {[%emt 0:01:11]} 6. O-O {[%emt 0:03:31]} Nc6 $1 {[%emt 0:01:42] 6...Nc6 scores better than 6...d6.} 7. Re1 {[%emt 0:03:00] B21: Sicilian: 2 f4 and Morra Gambit.} d6 {[%emt 0:03:56]} 8. Bf4 {[%emt 0:02:57]} Nf6 {[%emt 0:10:45]} 9. Nbd2 {[%emt 0:02:04] White is slightly better.} O-O {[%emt 0:02:52]} 10. h3 {[%emt 0:01:11]} Nd7 {[%emt 0:05:23]} 11. Nc4 {[%emt 0:06:37]} Nc5 {[%emt 0:04:05][%cal Oc6e5]} 12. Bc2 {[%emt 0:07:43] [#]} Ne6 $146 {[%emt 0:08:28]} (12... b5 $5 {[%cal Rb5c4]} 13. Ne3 b4 $11) ({Predecessor:} 12... Be6 13. Ne3 b5 14. Nd5 Rb8 15. Qd2 a5 16. Nd4 Bxd5 17. exd5 Nxd4 18. cxd4 Nd7 {1-0 (84) Gabuzyan,H-Pagerka,M (1863) Herceg Novi 2005}) 13. Bh2 {[%emt 0:02:32]} b5 $1 {[%emt 0:00:54]} 14. Ne3 {[%emt 0:06:41]} Bd7 {[%emt 0:04:36]} (14... b4 $5 {[%cal Rb4c3]}) 15. a3 {[%emt 0:07:37]} a5 {[%emt 0:00:35]} 16. Rb1 {[%emt 0:19:22]} b4 {[%emt 0:03:50]} 17. c4 {[%emt 0:03:13]} (17. Nd5 $11) 17... Rb8 $15 {[%emt 0:02:48]} 18. a4 {[%emt 0:02:20]} b3 {[%emt 0:01:10]} 19. Bxb3 {[%emt 0:02:37]} Nc5 {[%emt 0:00:19][%csl LRb3,LRe4]} 20. Bc2 {[%emt 0:04:42]} Bxb2 {[%emt 0:02:26]} 21. Qe2 {[%emt 0:05:30]} (21. Qd2 {is more complex.} f6 22. Bf4 Ba3 23. Rxb8 Qxb8 24. Rb1) 21... Bg7 $36 {[%emt 0:04:23][%mdl 2048] Black has the initiative. &Nero is more active.} 22. Rxb8 {[%emt 0:03:41]} Nxb8 {[%emt 0:03:17]} ({Black should try} 22... Qxb8 $15 23. Nd5 e6) 23. Rd1 {[%emt 0:07:55]} (23. e5 $11) 23... Nc6 {[%emt 0:02:59]} 24. e5 {[%emt 0:01:26]} dxe5 {[%emt 0:03:54] Threatens to win with ...e4. White is now going downhill.} 25. Ng4 {[%emt 0:01:49] [#]} (25. Rd5 $17 e4 26. Rxc5 exf3 27. Qxf3) 25... f6 $1 $19 {[%emt 0:02:42]} 26. Qe3 {[%emt 0:02:05]} Ne6 {[%emt 0:01:29]} 27. h4 {[%emt 0:03:00]} (27. c5 {was called for.}) 27... Ned4 {[%emt 0:00:52]} 28. Be4 {[%emt 0:00:59]} Bxg4 {[%emt 0:03:27]} 29. Bxc6 {[%emt 0:00:09]} Qc8 {[%emt 0:00:35]} 30. Bd5+ {[%emt 0:01:13]} (30. Nxd4 $142 Bxd1 31. Bd5+ Kh8 32. Ne6) 30... e6 {[%emt 0:00:19]} 31. Be4 {[%emt 0:00:31]} f5 {[%emt 0:00:46]} 32. Bb1 {[%emt 0:00:30]} (32. Rb1 {might work better.} fxe4 33. Nxe5) 32... Bxf3 {[%emt 0:00:20]} 33. gxf3 {[%emt 0:00:26]} Qc6 {[%emt 0:00:37]} 34. Kg2 {[%emt 0:00:34]} Rb8 {[%emt 0:03:09] Strongly threatening ...Rb2.} 35. Bd3 {[%emt 0:00:29] [#]} Bh6 $1 {[%emt 0:02:35][%mdl 512]} 36. Be4 {[%emt 0:00:33]} fxe4 {[%emt 0:02:16]} (36... Qxa4 37. Qxh6 fxe4 38. Rxd4 exf3+ 39. Kh3 exd4 40. Bxb8 Qxc4 41. Bd6 (41. Be5 Qf1+ 42. Kg4 Qg1+ 43. Bg3 Qd1 $14) 41... Qf1+ 42. Kg4 (42. Kg3 $2 Qg2+ 43. Kf4 Qh2+ 44. Ke4 Qxd6 $19) 42... Qg1+ 43. Kxf3 Qd1+ 44. Kg2 Qg4+ 45. Kf1 Qd1+ 46. Kg2 Qg4+ 47. Kf1 Qd1+ 48. Kg2 $16) 37. Qxh6 {[%emt 0:00:12][%cal Od1d4] Rxd4! is the strong threat.} exf3+ {[%emt 0:00:24]} (37... Nxf3 $142 {[%cal Oe4e3] Hoping for ...e3!} 38. Kh3 Qxa4) 38. Kh1 $2 {[%emt 0:00:10]} (38. Kh3 {was the only defense.} Qxc4 39. Qg5) 38... Qe4 {[%emt 0:02:49]} ({And not} 38... Qxa4 39. Rc1 $19) 39. Qg5 {[%emt 0:01:06]} Nc6 {[%emt 0:02:29]} 40. h5 $2 {[%emt 0:00:00]} (40. Bg3) 40... Rb1 {[%emt 0:00:00]} 41. Qg1 {[%emt 0:03:38]} Rxd1 {[%emt 0:01:24]} 42. Qxd1 {[%emt 0:00:02]} Qg4 {[%emt 0:01:03][%csl Gf3][%cal Rg4g2]} 43. Qf1 {[%emt 0:01:31] Against Qg2+} Qxh5 {[%emt 0:00:28]} 44. c5 {[%emt 0:00:57]} Qg4 {[%emt 0:00:29]} 45. Bg3 {[%emt 0:00:56]} h5 {[%emt 0:00:32][%cal Bh7h5,Bh5h4,Bh4g3,Bg3f2][%mdl 32] White must now prevent ...Kf7.} 46. Kg1 {[%emt 0:00:28]} h4 {[%emt 0:00:47] Black mates.} 47. Qa6 {[%emt 0:00:31]} hxg3 {[%emt 0:01:20]} 48. Qc8+ {[%emt 0:00:15]} Kf7 {[%emt 0:00:16]} 49. Qd7+ {[%emt 0:00:32]} Ne7 {[%emt 0:00:14]} 50. Qd2 {[%emt 0:00:21]} gxf2+ {[%emt 0:00:15] Weighted Error Value: White=0.83/Black=0.19 (very precise)} 0-1

[Event "Reykjavik Open 2022"]
[Site "Reykjavik"]
[Date "2022.04.09"]
[Round "5.56"]
[White "Cramling Bellon, Anna"]
[Black "Anand, Vignesh"]
[Result "1-0"]
[ECO "D85"]
[WhiteElo "2057"]
[BlackElo "1882"]
[Annotator "NA RC"]
[PlyCount "57"]
[EventDate "2022.04.06"]
[EventCountry "ISL"]
[SourceTitle "playchess.com"]
[Source "ChessBase"]
[SourceQuality "1"]
[TimeControl "40/5400+30:1800+30"]

1. d4 {[%emt 0:00:25]} Nf6 {[%emt 0:00:10]} 2. c4 {[%emt 0:00:14]} g6 {[%emt 0:00:07]} 3. Nc3 {[%emt 0:00:06]} d5 {[%emt 0:00:07]} 4. cxd5 {[%emt 0:00:09]} Nxd5 {[%emt 0:00:08]} 5. e4 {[%emt 0:00:41]} Nxc3 {[%emt 0:00:08]} 6. bxc3 {[%emt 0:00:05]} Bg7 {[%emt 0:00:08]} 7. Qa4+ {[%emt 0:00:43]} Nd7 {[%emt 0:00:27]} 8. Nf3 {[%emt 0:00:58]} O-O {[%emt 0:00:11]} 9. Bg5 {[%emt 0:00:38]} c5 {[%emt 0:00:48]} 10. Rd1 {[%emt 0:05:06]} Nf6 {[%emt 0:00:23]} 11. d5 {[%emt 0:11:39]} Bd7 {[%emt 0:03:48]} 12. Qc2 {[%emt 0:02:14]} Qa5 {[%emt 0:00:59]} 13. Rc1 {[%emt 0:15:30]} b5 {[%emt 0:09:59]} 14. Bd3 {[%emt 0:01:54]} e6 {[%emt 0:16:50]} 15. Bxf6 {[%emt 0:03:54]} Bxf6 {[%emt 0:00:07]} 16. e5 {[%emt 0:00:05]} Bg7 {[%emt 0:00:37]} 17. d6 {[%emt 0:00:20]} Bc6 {[%emt 0:03:23]} 18. Be4 {[%emt 0:06:17]} Bxe4 {[%emt 0:01:24]} 19. Qxe4 {[%emt 0:00:02]} Qxa2 {[%emt 0:00:08]} 20. O-O {[%emt 0:00:18]} f6 {[%emt 0:08:15]} 21. c4 {[%emt 0:14:41]} fxe5 {[%emt 0:07:30]} 22. Ng5 {[%emt 0:11:57]} Bh6 {[%emt 0:26:14]} 23. Rc2 {[%emt 0:03:33]} Qxc2 {[%emt 0:02:41]} 24. Qxc2 {[%emt 0:00:13]} Bxg5 {[%emt 0:00:03]} 25. cxb5 {[%emt 0:00:27]} Rac8 {[%emt 0:01:23]} 26. Qc4 {[%emt 0:03:50]} Bf6 {[%emt 0:09:54]} 27. Ra1 {[%emt 0:08:01]} Rf7 {[%emt 0:06:11]} 28. Qxe6 {[%emt 0:02:22]} Ra8 {[%emt 0:00:00]} 29. Qd5 {[%emt 0:01:29]} 1-0

[Event "Reykjavik Open 2022"]
[Site "Reykjavik"]
[Date "2022.04.09"]
[Round "5.57"]
[White "Barthel, Ansgar"]
[Black "Gregersen, Einar"]
[Result "1/2-1/2"]
[ECO "B93"]
[WhiteElo "2053"]
[BlackElo "1801"]
[Annotator "TA"]
[PlyCount "91"]
[EventDate "2022.04.06"]
[EventCountry "ISL"]
[SourceTitle "playchess.com"]
[Source "ChessBase"]
[SourceQuality "1"]
[TimeControl "40/5400+30:1800+30"]

{[%evp 20,91,0,-13,-2,0,0,-16,-15,-29,-20,-19,0,-32,0,0,0,-42,-42,-40,-45,-41,-15,-37,-31,-29,-14,-25,-10,-22,0,0,0,-64,-68,-89,-86,-100,-100,-116,-106,-235,0,-248,-248,-234,-112,-226,0,0,0,0,0,0,0,0,0,0,946,427,1327,-20,-23,-65,-66,-54,0,0,0,-89,-56,-50,0,0]} 1. e4 {[%emt 0:01:07]} c5 {[%emt 0:00:07]} 2. Nf3 {[%emt 0:00:07]} d6 {[%emt 0:00:10]} 3. d4 {[%emt 0:00:06]} cxd4 {[%emt 0:00:05]} 4. Nxd4 {[%emt 0:00:04]} Nf6 {[%emt 0:00:13]} 5. Nc3 {[%emt 0:00:04]} a6 {[%emt 0:00:11]} 6. f4 {[%emt 0:00:08]} e5 {[%emt 0:00:41]} 7. Nf3 {[%emt 0:00:05]} Nbd7 {[%emt 0:00:20]} 8. a4 {[%emt 0:00:07]} Qc7 {[%emt 0:00:58]} 9. Bd3 {[%emt 0:00:05]} Be7 {[%emt 0:00:47]} 10. O-O {[%emt 0:00:11]} O-O {[%emt 0:01:26]} 11. Kh1 {[%emt 0:00:21]} Nc5 {[%emt 0:00:25] B93: Sicilian Najdorf: 6 f4.} 12. Qe2 {[%emt 0:01:52]} Re8 {[%emt 0:00:25]} 13. fxe5 {[%emt 0:05:51]} dxe5 {[%emt 0:00:12]} 14. Bg5 {[%emt 0:01:15]} Be6 {[%emt 0:08:20]} 15. Nh4 {[%emt 0:05:25] [#]} Qb6 $146 {[%emt 0:09:32]} ({Predecessor:} 15... Nfd7 16. Bxe7 Rxe7 17. Nf5 Bxf5 18. Nd5 Qd6 19. Nxe7+ Qxe7 20. Rxf5 Ne6 21. Rff1 Rc8 {½-½ (52) Maidel,A (2347)-Bok,B (2605) Chess.com INT 2017}) 16. Rab1 {[%emt 0:15:50]} (16. Nf5 $5 {[%cal Rf5e7]}) 16... Kh8 {[%emt 0:09:36]} 17. Nf5 {[%emt 0:02:45]} Nxd3 {[%emt 0:05:23]} 18. cxd3 {[%emt 0:00:40]} (18. Qxd3 $5 {[%cal Rf5e7]} Rad8 19. Qg3 $11) 18... Ng8 {[%emt 0:00:48]} 19. Nxe7 {[%emt 0:44:49]} Nxe7 {[%emt 0:00:41]} 20. b4 {[%emt 0:00:08]} Rad8 {[%emt 0:12:06]} 21. Be3 {[%emt 0:03:22] Prevents Qd4.} Qd6 {[%emt 0:00:31]} 22. Rfd1 {[%emt 0:01:51]} Qd7 {[%emt 0:04:00]} 23. Qf2 {[%emt 0:01:21]} Rc8 {[%emt 0:01:15]} 24. Qb2 {[%emt 0:03:08]} Bg4 {[%emt 0:05:43]} 25. Rd2 {[%emt 0:00:31]} f5 {[%emt 0:01:14][%cal Bf7f5,Bf5f4,Bf4g3][%mdl 32]} 26. Bg5 {[%emt 0:01:55]} ({Better is} 26. Bc5 $11) 26... f4 {[%emt 0:03:33]} 27. Bxe7 {[%emt 0:00:24]} Qxe7 {[%emt 0:01:29]} 28. Nd5 {[%emt 0:00:13]} Qh4 {[%emt 0:02:15] ...Rc6 is the strong threat.} 29. Rf1 {[%emt 0:00:16]} Rc6 $1 {[%emt 0:00:54] Hoping for ...Rh6.} 30. Rdf2 {[%emt 0:02:40] [#]} ({Wrong is} 30. h3 $2 Rg6 31. Kg1 Bxh3 $19) (30. Kg1 $17) 30... Kg8 $2 {[%emt 0:07:25]} (30... Rh6 $1 $19 {[%csl Gh6][%cal Rh4h2]} 31. g3 (31. h3 $2 Bxh3 32. Kg1 Bg4 $19) 31... Qxg3) 31. g3 $2 {[%emt 0:00:17]} (31. Qa2 $1 $11 {and White has nothing to worry.} Kh8 32. g3) 31... fxg3 $19 {[%emt 0:02:32]} 32. Rf7 {[%emt 0:05:29][%cal Od5e7]} Rce6 {[%emt 0:14:48] Prevents Ne7+.} (32... Rh6 33. Ne7+ Qxe7 34. Rxe7 Rxe7 35. Kg1 $11) (32... Rcc8 $19 {and Black stays clearly on top. And now ...Qh6 would win.} 33. b5 axb5 34. axb5 Bh3 35. hxg3 Qh6) 33. Nc7 {[%emt 0:01:30] [#]} (33. Rxb7 $2 Rh6 34. Ne3 Be6 $19) (33. Qa2 $17 h6 34. Nc7) 33... R6e7 $2 {[%emt 0:00:16]} (33... Bh3 $1 $19 34. hxg3 Qh5) 34. Rxe7 $11 {[%emt 0:00:57] Chess con chili.} Rxe7 {[%emt 0:00:21]} (34... g2+ $2 35. Qxg2 Qxe7 36. Nxe8 $18 (36. Qxg4 Qxc7 37. Qd1 h6 $11)) 35. Qa2+ {[%emt 0:00:16]} Be6 $1 {[%emt 0:00:19]} 36. Nxe6 {[%emt 0:00:09][%csl Ge6][%cal Rf1f8]} g2+ $1 $40 {[%emt 0:00:26][%mdl 128] White needs to defend precisely.} 37. Qxg2 {[%emt 0:01:13][%csl Ge6][%cal Rf1f8]} Rxe6 {[%emt 0:00:20][%mdl 4096] Endgame KQR-KQR} 38. Qa2 {[%emt 0:01:13]} Qh3 {[%emt 0:00:38][%mdl 8192]} (38... Qe7 $11) 39. Rf2 {[%emt 0:01:05]} (39. Rf5 $142 Qh6 40. Rxe5) 39... h6 {[%emt 0:00:18]} (39... Qg4 $142 40. Qb3 Qg6) 40. Qd5 $2 {[%emt 0:00:00]} (40. Rf5 $18 Qxd3 41. Qxe6+ Kh7 42. Qxe5) 40... Kh7 {[%emt 0:00:00]} 41. Qd7 {[%emt 0:13:39] aiming for Rg2.} Qg4 {[%emt 0:05:34] ( -> ...Qd1+)} 42. Rf1 {[%emt 0:00:49] Prevents Qd1.} Qe2 {[%emt 0:05:04]} 43. Qf7 $1 {[%emt 0:00:06] Threatening mate with Rg1.} Rg6 {[%emt 0:03:39][%csl Gg6][%cal Re2g2]} (43... Qxd3 $5 44. Qf5+ Rg6 $11) 44. Qf3 {[%emt 0:00:08] Prevents Qg2+.} (44. Rg1 $1 $11 {keeps the balance.} Rxg1+ 45. Kxg1) 44... Qd2 {[%emt 0:09:39]} 45. Rg1 {[%emt 0:06:29] Black must now prevent Qf5.} Rxg1+ {[%emt 0:01:18]} (45... Rf6 $1 $15 46. Qg3 Rf7) 46. Kxg1 {[%emt 0:00:04] White used his chance.  Weighted Error Value: White=0.64/Black=0.36} 1/2-1/2

[Event "Reykjavik Open 2022"]
[Site "Reykjavik"]
[Date "2022.04.10"]
[Round "6.1"]
[White "Jarmula, Lukasz"]
[Black "Andersen, Mads"]
[Result "0-1"]
[ECO "D27"]
[WhiteElo "2434"]
[BlackElo "2570"]
[Annotator "TA"]
[PlyCount "124"]
[EventDate "2022.04.06"]
[EventCountry "ISL"]
[SourceTitle "playchess.com"]
[Source "ChessBase"]
[SourceQuality "1"]
[TimeControl "40/5400+30:1800+30"]

{[%evp 15,124,24,18,20,22,24,31,18,17,8,17,0,1,-23,-26,-11,-16,-33,-30,-57,-75,-118,-130,-125,-120,-127,-127,-152,-129,-131,-100,-133,-98,-148,-91,-102,-112,-137,-136,-179,-200,-193,-164,-322,-322,-322,-322,-398,-398,-296,-437,-516,-514,-506,-368,-582,-400,-376,-726,-736,-541,-732,-295,-591,-762,-635,-731,-389,-672,-937,-874,-848,-831,-887,-629,-963,-671,-900,-767,-1029,-863,-1072,-993,-748,-320,-888,-952,-1101,-1058,-1183,-1043,-877,-1229,-1086,-1027,-1092,-1018,-2982,-2677,-1840,-620,-29960,-10033,-29963,-29966,-29969,-29970,-29963,-29963,-4789,-2088]} 1. d4 {[%emt 0:02:58]} d5 {[%emt 0:00:16]} 2. c4 {[%emt 0:00:07]} dxc4 {[%emt 0:00:36]} 3. Nf3 {[%emt 0:00:07]} Nf6 {[%emt 0:00:12]} 4. e3 {[%emt 0:00:05]} e6 {[%emt 0:00:07]} 5. Bxc4 {[%emt 0:00:04]} c5 {[%emt 0:00:06]} 6. O-O {[%emt 0:00:07]} a6 {[%emt 0:00:04]} 7. b3 {[%emt 0:00:34]} Nbd7 {[%emt 0:00:49]} 8. Bb2 {[%emt 0:00:30]} Be7 {[%emt 0:00:22] 8...Be7 is better than 8...b5.} 9. dxc5 {[%emt 0:03:05] D27: Queen's Gambit Accepted: Classical main line: 7 e4!? and 7 a4.} Bxc5 {[%emt 0:00:33]} 10. Nbd2 {[%emt 0:01:26]} b6 {[%emt 0:03:14][%cal Bb7b6,Bb6b5][%mdl 32]} 11. Be2 {[%emt 0:07:52] White is slightly better.} Bb7 {[%emt 0:02:33]} 12. Nc4 {[%emt 0:01:31]} O-O {[%emt 0:05:36] [#]} 13. Nfe5 $146 {[%emt 0:07:58]} ({Predecessor:} 13. Rc1 b5 14. Bxf6 Nxf6 15. Qxd8 Raxd8 16. Na5 Bxf3 17. Bxf3 Ba3 18. Rc6 Ra8 19. Rd1 {½-½ (31) Stuart,A (2381)-Moskalyov,V (2373) ICCF email 2019}) 13... Nxe5 {[%emt 0:17:39]} 14. Bxe5 {[%emt 0:01:02]} b5 {[%emt 0:01:29]} 15. Qxd8 {[%emt 0:08:23]} ({Of course not} 15. Nd6 Bd5 16. e4 Nxe4 17. Nxe4 Bxe4 $17) 15... Rfxd8 {[%emt 0:00:40]} 16. Na5 {[%emt 0:01:20]} Bd5 {[%emt 0:28:11]} 17. Bxf6 {[%emt 0:03:39]} gxf6 {[%emt 0:00:09]} 18. Bf3 {[%emt 0:00:18]} Bxf3 {[%emt 0:17:26]} 19. gxf3 {[%emt 0:00:37]} Ba3 {[%emt 0:00:09]} 20. Rfd1 {[%emt 0:06:06]} Rac8 {[%emt 0:00:37] Prevents Nc6.} 21. Nb7 {[%emt 0:08:38]} Rxd1+ {[%emt 0:02:33]} 22. Rxd1 $17 {[%emt 0:00:28][%mdl 4096] Endgame KRB-KRN} Be7 {[%emt 0:04:08] [#] Prevents Rd8+. ...Rc7 is the strong threat.} 23. Rd2 {[%emt 0:13:21]} Rc6 {[%emt 0:05:00] Against Nd6} 24. a4 {[%emt 0:05:27]} (24. Rd4 $142) 24... Kf8 {[%emt 0:00:25]} (24... Rc3 $142 25. Rd7 Kf8 26. axb5 axb5) 25. axb5 {[%emt 0:01:17]} axb5 {[%emt 0:00:04]} 26. Ra2 {[%emt 0:00:46]} Bb4 {[%emt 0:04:13]} 27. Ra7 {[%emt 0:14:05]} Rc7 {[%emt 0:00:53]} 28. Ra8+ {[%emt 0:00:06]} Ke7 {[%emt 0:00:07]} 29. Rb8 {[%emt 0:00:26]} (29. Nd8) 29... Kd7 $19 {[%emt 0:02:20]} 30. Nd8 {[%emt 0:01:34]} Bd6 {[%emt 0:00:36] White must now prevent ...Rc1+.} 31. Ra8 {[%emt 0:03:45] [#]} Rc8 $1 {[%emt 0:01:50]} 32. Rxc8 {[%emt 0:03:39]} Kxc8 {[%emt 0:00:02] KB-KN} 33. Nc6 {[%emt 0:00:24]} (33. Nxf7 $2 Bf8 34. f4 Kd7 $19) 33... e5 {[%emt 0:00:35]} 34. b4 {[%emt 0:01:35]} Kc7 {[%emt 0:00:49]} 35. Na5 {[%emt 0:00:08]} Bxb4 {[%emt 0:00:07]} 36. Nb3 {[%emt 0:00:03]} Kc6 {[%emt 0:01:07]} 37. e4 {[%emt 0:01:04]} Bc5 {[%emt 0:00:15]} 38. Kf1 {[%emt 0:01:18]} b4 {[%emt 0:00:11] Threatens to win with ...Kb5.} 39. Ke2 {[%emt 0:00:40]} Kb5 {[%emt 0:00:12] And now ...Kc4 would win.} 40. Kd3 {[%emt 0:00:00]} Bxf2 {[%emt 0:00:00]} 41. Nd2 {[%emt 0:03:35]} Be1 $2 {[%emt 0:03:58]} (41... Bh4 42. h3 Bg3) 42. Nb3 {[%emt 0:00:26]} Bc3 {[%emt 0:06:23]} 43. Nc1 {[%emt 0:01:03]} h6 {[%emt 0:00:35]} 44. Nb3 {[%emt 0:00:26]} h5 {[%emt 0:00:07]} 45. Nc1 {[%emt 0:00:57]} Be1 {[%emt 0:02:17]} 46. Nb3 {[%emt 0:01:49]} Bf2 {[%emt 0:02:39][%cal Of2d4]} 47. Nc1 {[%emt 0:01:17]} Bg1 {[%emt 0:00:53]} 48. h3 {[%emt 0:00:07]} Bf2 {[%emt 0:05:00]} 49. Nb3 {[%emt 0:00:07]} Be1 {[%emt 0:02:33]} 50. Nc1 $2 {[%emt 0:00:09]} (50. Ke2 Bh4 51. Kd3) 50... Kc5 {[%emt 0:00:41]} 51. Nb3+ {[%emt 0:00:40]} Kd6 {[%emt 0:00:21]} 52. Kc4 {[%emt 0:15:40]} Ke7 {[%emt 0:00:16][%cal Of6f5]} 53. Nc5 {[%emt 0:01:46]} f5 {[%emt 0:05:06]} 54. Kd5 {[%emt 0:03:56]} fxe4 {[%emt 0:00:14]} 55. Kxe4 {[%emt 0:00:14]} Bc3 {[%emt 0:01:09] aiming for ...Bd4.} 56. Kf5 {[%emt 0:00:57]} Kd6 {[%emt 0:00:47]} 57. Nb3 {[%emt 0:00:16]} h4 {[%emt 0:01:33]} (57... Kd5 $142 58. Kg5 Bd4 59. Kxh5 Kc4 60. Na5+ Kc3) 58. Kg5 {[%emt 0:00:38]} Be1 {[%emt 0:00:51] ( -> ...Bg3)} 59. Kf6 {[%emt 0:00:45]} Kd5 {[%emt 0:00:12]} 60. Kxf7 {[%emt 0:00:16]} Kc4 {[%emt 0:00:44]} 61. Na5+ {[%emt 0:00:07]} Kc3 {[%emt 0:00:13]} 62. Ke6 {[%emt 0:00:50]} Bg3 {[%emt 0:00:07] Weighted Error Value: White=0.28 (precise) /Black=0.25 (precise)} ({Not} 62... b3 63. Nxb3 Kxb3 64. Kxe5 $15) 0-1

[Event "Reykjavik Open 2022"]
[Site "Reykjavik"]
[Date "2022.04.10"]
[Round "6.2"]
[White "Gukesh D"]
[Black "Steingrimsson, Hedinn"]
[Result "1/2-1/2"]
[ECO "D40"]
[WhiteElo "2614"]
[BlackElo "2535"]
[Annotator "TA"]
[PlyCount "66"]
[EventDate "2022.04.06"]
[EventCountry "ISL"]
[SourceTitle "playchess.com"]
[Source "ChessBase"]
[SourceQuality "1"]
[TimeControl "40/5400+30:1800+30"]

{[%evp 18,66,4,0,0,0,9,0,41,-2,-2,0,-8,-14,-4,-25,-9,-16,0,0,0,0,0,0,0,0,0,0,0,0,0,0,0,-6,0,0,0,0,0,0,0,0,0,0,0,0,0,0,0,0,0]} 1. d4 {[%emt 0:03:03]} Nf6 {[%emt 0:02:53]} 2. c4 {[%emt 0:00:00]} e6 {[%emt 0:00:04]} 3. Nf3 {[%emt 0:00:28]} d5 {[%emt 0:00:13]} 4. Nc3 {[%emt 0:00:07]} c5 {[%emt 0:00:40]} 5. e3 {[%emt 0:03:06]} Nc6 {[%emt 0:00:24]} 6. a3 {[%emt 0:04:38]} dxc4 {[%emt 0:02:32]} 7. Bxc4 {[%emt 0:00:09][%cal Bf1c4,Bc4a2,Ba2d5][%mdl 32]} a6 {[%emt 0:00:02]} 8. O-O {[%emt 0:04:29]} b5 {[%emt 0:00:50]} 9. Ba2 {[%emt 0:00:26]} Bb7 {[%emt 0:07:57]} 10. d5 {[%emt 0:03:09]} exd5 {[%emt 0:05:20] D40: Queen's Gambit Declined: Semi-Tarrasch with 5 e3.} 11. Nxd5 {[%emt 0:00:05][%cal Oe3e4]} Nxd5 {[%emt 0:10:53]} 12. Bxd5 {[%emt 0:00:05][%cal Of3e5]} Qc7 {[%emt 0:00:27] Prevents Ne5.} 13. e4 {[%emt 0:02:57]} Be7 {[%emt 0:01:31]} 14. Ng5 {[%emt 0:09:06]} O-O {[%emt 0:04:31]} 15. Qh5 {[%emt 0:00:59][%csl Gg5,LRf7,LRh7][%cal Rh5h7] [#]} Bxg5 {[%emt 0:00:47] [#]} 16. Bxg5 $146 {[%emt 0:00:09]} ({Predecessor:} 16. Qxg5 Nd4 17. Be3 Bxd5 18. exd5 Rad8 19. Rad1 f6 20. Qg4 Rxd5 21. Bxd4 Rxd4 22. Rxd4 cxd4 23. Qxd4 {½-½ (33) Wang,Y (2684)-Brown,M (2524) Chess.com INT 2019}) 16... Nd4 {[%emt 0:02:47]} 17. Qg4 {[%emt 0:11:25] The position is equal.} Bxd5 {[%emt 0:10:18]} 18. Bf6 $1 {[%emt 0:03:16][%csl Gf6][%cal Rg4g7]} Ne6 {[%emt 0:00:03][%cal Bd4e6,Be6f4,Bf4d5,Bd5c3][%mdl 32]} 19. exd5 {[%emt 0:00:13]} Qf4 {[%emt 0:00:18]} 20. Qxf4 {[%emt 0:00:14]} Nxf4 {[%emt 0:00:02]} 21. Be7 {[%emt 0:00:09][%csl LRc5,LRf8] Black must now prevent Rfd1.} Rfe8 {[%emt 0:00:08]} 22. Bxc5 {[%emt 0:05:01]} Rac8 {[%emt 0:02:02]} 23. b4 {[%emt 0:10:18]} Nxd5 {[%emt 0:00:28]} 24. Rfd1 {[%emt 0:02:23]} Nc3 {[%emt 0:03:00]} 25. Rd7 {[%emt 0:00:29]} h5 {[%emt 0:11:38]} 26. h3 {[%emt 0:02:23]} Rcd8 {[%emt 0:01:39]} 27. Rxd8 {[%emt 0:11:36]} Rxd8 $11 {[%emt 0:00:01][%mdl 4096] Endgame KRB-KRN} 28. Re1 {[%emt 0:01:47]} Na4 {[%emt 0:03:49]} 29. Re7 {[%emt 0:04:44]} Rd3 {[%emt 0:04:55]} 30. Ra7 {[%emt 0:00:07]} Nxc5 {[%emt 0:02:50]} 31. bxc5 {[%emt 0:00:02]} Rxa3 {[%emt 0:00:09]} 32. c6 {[%emt 0:00:04]} Kh7 {[%emt 0:02:32]} 33. Ra8 {[%emt 0:00:05] [#] And now c7 would win.} ({Of course not} 33. Rxf7 Rc3 $15) 33... Rc3 {[%emt 0:02:25] A balanced but interesting game.  Weighted Error Value: White=0.03 (flawless) /Black=0.04 (flawless)} 1/2-1/2